[Event "Rapid del Mercoledì"]
[Site "Chess.com"]
[Date "2020.04.29"]
[Round "4"]
[White "crippo"]
[Black "SanSecondoPR"]
[Result "1-0"]
[WhiteElo "1505"]
[BlackElo "1273"]
[TimeControl "720+3"]
[EndTime "13:17:43 PDT"]
[Termination "crippo ha vinto per abbandono"]

1. e4 {[%clk 0:12:02.9]} 1... e5 {[%clk 0:11:51.1]} 2. Nf3 {[%clk 0:12:04.4]}
2... Nc6 {[%clk 0:11:49.7]} 3. Bc4 {[%clk 0:12:05.4]} 3... Nf6 {[%clk
0:11:49.6]} 4. d3 {[%clk 0:12:07.2]} 4... d5 {[%clk 0:11:45.6]} 5. exd5 {[%clk
0:12:07.8]} 5... Nxd5 {[%clk 0:11:45.6]} 6. Nc3 {[%clk 0:12:09.2]} 6... Nxc3
{[%clk 0:11:44.3]} 7. bxc3 {[%clk 0:12:10.8]} 7... Be7 {[%clk 0:11:45.6]} 8. O-O
{[%clk 0:12:09.6]} 8... O-O {[%clk 0:11:45.8]} 9. h3 {[%clk 0:12:10.8]} 9... a6
{[%clk 0:11:25.4]} 10. Re1 {[%clk 0:12:11.7]} 10... Bf6 {[%clk 0:11:18.2]} 11.
Bb3 {[%clk 0:12:09.4]} 11... Bf5 {[%clk 0:11:07.4]} 12. Bd2 {[%clk 0:12:06.4]}
12... Na5 {[%clk 0:11:02.9]} 13. Rb1 {[%clk 0:12:05.8]} 13... Nxb3 {[%clk
0:11:03]} 14. Rxb3 {[%clk 0:12:06.6]} 14... Be6 {[%clk 0:10:55.4]} 15. c4 {[%clk
0:12:07]} 15... b5 {[%clk 0:10:38.1]} 16. Nxe5 {[%clk 0:12:01.1]} 16... bxc4
{[%clk 0:10:25.3]} 17. Nxc4 {[%clk 0:12:02.6]} 17... Qd5 {[%clk 0:09:45.7]} 18.
Bc3 {[%clk 0:11:46.9]} 18... Bh4 {[%clk 0:09:23]} 19. Re5 {[%clk 0:11:33.2]}
19... Qd7 {[%clk 0:08:49.9]} 20. Qh5 {[%clk 0:11:29.5]} 20... Bf6 {[%clk
0:08:35.5]} 21. Re3 {[%clk 0:11:24.9]} 21... Bd4 {[%clk 0:08:00.9]} 22. Rg3
{[%clk 0:10:54.2]} 22... Bxc4 {[%clk 0:07:50.8]} 23. dxc4 {[%clk 0:10:54.2]}
23... Bxc3 {[%clk 0:07:37.9]} 24. Rbxc3 {[%clk 0:10:55]} 24... Qd2 {[%clk
0:07:26.8]} 25. Qe5 {[%clk 0:10:46]} 25... Qd1+ {[%clk 0:07:07.7]} 26. Kh2
{[%clk 0:10:44.2]} 26... f6 {[%clk 0:06:45.7]} 27. Qxc7 {[%clk 0:10:42]} 27...
Rf7 {[%clk 0:06:10.4]} 28. Qc6 {[%clk 0:10:41.4]} 28... Raf8 {[%clk 0:06:04]}
29. c5 {[%clk 0:10:36.9]} 29... h5 {[%clk 0:06:01.2]} 30. Qxa6 {[%clk 0:10:22]}
30... h4 {[%clk 0:05:58.4]} 31. Rgd3 {[%clk 0:10:21.1]} 31... Qf1 {[%clk
0:05:52.2]} 32. Qa4 {[%clk 0:09:43.5]} 32... Qxf2 {[%clk 0:05:45.4]} 33. Rf3
{[%clk 0:09:40.8]} 33... Qe1 {[%clk 0:05:35.9]} 34. Qxh4 {[%clk 0:09:40.5]}
34... Qe5+ {[%clk 0:05:23.5]} 35. Qf4 {[%clk 0:09:39.6]} 35... Qd5 {[%clk
0:04:59.4]} 36. Rfd3 {[%clk 0:09:37.1]} 36... Qxa2 {[%clk 0:04:49.3]} 37. c6
{[%clk 0:09:38.9]} 37... g5 {[%clk 0:04:40.1]} 38. Qf3 {[%clk 0:09:37.1]} 38...
Qa6 {[%clk 0:04:12.2]} 39. Rd7 {[%clk 0:09:33.1]} 39... Qc8 {[%clk 0:03:59.6]}
40. Rxf7 {[%clk 0:09:30.7]} 40... Rxf7 {[%clk 0:03:57.6]} 41. Qd5 {[%clk
0:09:30.9]} 41... Kg7 {[%clk 0:03:48.9]} 42. g3 {[%clk 0:08:26.7]} 42... g4
{[%clk 0:03:17.4]} 43. Qh5 {[%clk 0:07:56.6]} 43... gxh3 {[%clk 0:02:57.2]} 44.
Qxh3 {[%clk 0:07:53.6]} 44... Qd8 {[%clk 0:02:21.8]} 45. Qg4+ {[%clk 0:07:53.2]}
45... Kf8 {[%clk 0:02:06]} 46. Qb4+ {[%clk 0:07:38.1]} 46... Kg8 {[%clk
0:01:54.2]} 47. Rc4 {[%clk 0:07:39.2]} 47... Rh7+ {[%clk 0:01:44.8]} 48. Rh4
{[%clk 0:07:30]} 48... Rxh4+ {[%clk 0:01:29.7]} 49. Qxh4 {[%clk 0:07:30.3]}
49... Qd2+ {[%clk 0:01:23.8]} 50. Kh3 {[%clk 0:07:31.6]} 50... Qd6 {[%clk
0:01:12.3]} 51. Qg4+ {[%clk 0:07:27.5]} 51... Kf7 {[%clk 0:01:01.2]} 52. Qd7+
{[%clk 0:07:28.2]} 1-0

[Event "Rapid del Mercoledì"]
[Site "Chess.com"]
[Date "2020.04.29"]
[Round "4"]
[White "Carbon"]
[Black "riccardocanossa"]
[Result "1/2-1/2"]
[WhiteElo "1741"]
[BlackElo "1288"]
[TimeControl "720+3"]
[EndTime "13:18:27 PDT"]
[Termination "Patta d'accordo"]

1. e4 {[%clk 0:12:02.6]} 1... e5 {[%clk 0:12:01.3]} 2. Nf3 {[%clk 0:12:04.2]}
2... Nc6 {[%clk 0:12:03.5]} 3. Bc4 {[%clk 0:12:05.6]} 3... Bc5 {[%clk 0:12:04]}
4. c3 {[%clk 0:12:07]} 4... Nf6 {[%clk 0:12:03.7]} 5. d3 {[%clk 0:12:08.9]} 5...
O-O {[%clk 0:12:03.1]} 6. Nbd2 {[%clk 0:12:08.8]} 6... a5 {[%clk 0:12:00.8]} 7.
Bb3 {[%clk 0:12:08.3]} 7... d6 {[%clk 0:11:53.5]} 8. O-O {[%clk 0:12:08.1]} 8...
Bg4 {[%clk 0:11:54.1]} 9. h3 {[%clk 0:12:06.6]} 9... Bh5 {[%clk 0:11:55]} 10.
Re1 {[%clk 0:12:07.5]} 10... b5 {[%clk 0:11:45.8]} 11. Nf1 {[%clk 0:12:05.4]}
11... Re8 {[%clk 0:11:27.8]} 12. Ng3 {[%clk 0:12:05]} 12... Bg6 {[%clk
0:11:19.9]} 13. Bg5 {[%clk 0:11:34.5]} 13... h6 {[%clk 0:11:17.1]} 14. Be3
{[%clk 0:11:00.8]} 14... Bxe3 {[%clk 0:11:04.9]} 15. Rxe3 {[%clk 0:11:01.8]}
15... a4 {[%clk 0:10:47.5]} 16. Bc2 {[%clk 0:10:56.8]} 16... Nh5 {[%clk
0:10:43.4]} 17. Nxh5 {[%clk 0:10:28.6]} 17... Bxh5 {[%clk 0:10:41.9]} 18. g4
{[%clk 0:10:30.2]} 18... Bg6 {[%clk 0:10:36.1]} 19. Rc1 {[%clk 0:10:12.6]} 19...
h5 {[%clk 0:10:08.5]} 20. Kg2 {[%clk 0:09:59]} 20... hxg4 {[%clk 0:09:47.9]} 21.
hxg4 {[%clk 0:10:00.3]} 21... d5 {[%clk 0:09:41.2]} 22. d4 {[%clk 0:08:44.6]}
22... exd4 {[%clk 0:09:38.2]} 23. Nxd4 {[%clk 0:08:28.9]} 23... Nxd4 {[%clk
0:09:37.7]} 24. Qxd4 {[%clk 0:08:29.3]} 24... dxe4 {[%clk 0:09:36.8]} 25. Qxd8
{[%clk 0:08:03.5]} 25... Raxd8 {[%clk 0:09:35.5]} 26. Rce1 {[%clk 0:08:04.7]}
26... Kf8 {[%clk 0:09:22.3]} 27. R1e2 {[%clk 0:08:00.5]} 27... Rd6 {[%clk
0:09:05.4]} 28. Kg3 {[%clk 0:07:51.7]} 28... f6 {[%clk 0:07:36.6]} 29. Bxe4
{[%clk 0:07:44.2]} 29... Bxe4 {[%clk 0:07:26.7]} 30. Rxe4 {[%clk 0:07:45.8]}
30... Rxe4 {[%clk 0:07:22.7]} 31. Rxe4 {[%clk 0:07:45]} 31... Rd2 {[%clk
0:07:24]} 32. Rb4 {[%clk 0:07:46.6]} 32... c6 {[%clk 0:07:17.9]} 33. c4 {[%clk
0:07:43]} 33... bxc4 {[%clk 0:07:08.3]} 34. Rxc4 {[%clk 0:07:29.1]} 34... Rxb2
{[%clk 0:06:57.2]} 35. Rxa4 {[%clk 0:07:29.4]} 35... Kf7 {[%clk 0:06:49.1]} 36.
Ra6 {[%clk 0:07:27]} 36... g6 {[%clk 0:06:21.6]} 37. a4 {[%clk 0:07:26.4]} 37...
Rb3+ {[%clk 0:06:09.9]} 38. f3 {[%clk 0:07:25.8]} 38... Ra3 {[%clk 0:05:52]} 39.
a5 {[%clk 0:07:07.5]} 39... c5 {[%clk 0:05:38.3]} 40. Ra8 {[%clk 0:07:02.7]}
40... c4 {[%clk 0:05:28.9]} 41. a6 {[%clk 0:07:04.2]} 41... c3 {[%clk
0:05:24.6]} 42. a7 {[%clk 0:07:05.6]} 42... c2 {[%clk 0:05:20.3]} 43. Rc8 {[%clk
0:06:56]} 43... Rxa7 {[%clk 0:05:11.7]} 44. Rxc2 {[%clk 0:06:55.6]} 44... Ra6
{[%clk 0:04:53.2]} 45. Rc7+ {[%clk 0:06:54.7]} 45... Ke6 {[%clk 0:04:52.1]} 46.
Rc8 {[%clk 0:06:53.9]} 46... Ra4 {[%clk 0:04:46.3]} 47. Re8+ {[%clk 0:06:51.3]}
47... Kf7 {[%clk 0:04:41.5]} 48. Rb8 {[%clk 0:06:37]} 48... g5 {[%clk
0:04:18.7]} 49. Rc8 {[%clk 0:06:27.3]} 49... Ra5 {[%clk 0:04:05.1]} 50. Rc7+
{[%clk 0:06:27]} 50... Kg6 {[%clk 0:03:52.3]} 51. Rb7 {[%clk 0:06:26.2]} 51...
f5 {[%clk 0:03:23.6]} 52. Rb6+ {[%clk 0:06:07.2]} 52... Kf7 {[%clk 0:03:17.7]}
53. gxf5 {[%clk 0:06:05.2]} 53... Rxf5 {[%clk 0:03:14.1]} 54. Kg4 {[%clk
0:06:03.6]} 54... Rf4+ {[%clk 0:03:05.9]} 55. Kg3 {[%clk 0:06:05.2]} 55... Ra4
{[%clk 0:02:15.6]} 1/2-1/2

[Event "Rapid del Mercoledì"]
[Site "Chess.com"]
[Date "2020.04.29"]
[Round "4"]
[White "Luca090267"]
[Black "fausto2p"]
[Result "1-0"]
[WhiteElo "1376"]
[BlackElo "1040"]
[TimeControl "720+3"]
[EndTime "13:19:19 PDT"]
[Termination "Luca090267 ha vinto per tempo"]

1. e4 {[%clk 0:11:59.7]} 1... e6 {[%clk 0:12:00.6]} 2. d4 {[%clk 0:12:00.4]}
2... d5 {[%clk 0:12:02]} 3. Nc3 {[%clk 0:11:59.9]} 3... Bb4 {[%clk 0:12:00.8]}
4. e5 {[%clk 0:12:01.2]} 4... c5 {[%clk 0:11:37.7]} 5. a3 {[%clk 0:11:58.9]}
5... Bxc3+ {[%clk 0:11:36.9]} 6. bxc3 {[%clk 0:11:59.9]} 6... Nc6 {[%clk
0:11:30.1]} 7. f4 {[%clk 0:11:59]} 7... Qa5 {[%clk 0:10:56.1]} 8. Qd3 {[%clk
0:11:41.5]} 8... a6 {[%clk 0:10:31.2]} 9. Bd2 {[%clk 0:11:37]} 9... c4 {[%clk
0:09:49.5]} 10. Qe3 {[%clk 0:11:27.1]} 10... Nge7 {[%clk 0:09:42.7]} 11. Nf3
{[%clk 0:11:27.9]} 11... Nf5 {[%clk 0:09:42.4]} 12. Qf2 {[%clk 0:11:27.3]} 12...
Qb5 {[%clk 0:09:12.1]} 13. Be2 {[%clk 0:11:22.5]} 13... Qb2 {[%clk 0:08:33.9]}
14. O-O {[%clk 0:11:16.9]} 14... Qxc2 {[%clk 0:07:53]} 15. g4 {[%clk 0:10:14.9]}
15... Nh6 {[%clk 0:07:22.9]} 16. h3 {[%clk 0:10:11.9]} 16... Qg6 {[%clk
0:07:05.6]} 17. Nh4 {[%clk 0:09:55.4]} 17... Qc2 {[%clk 0:04:58.3]} 18. Qe3
{[%clk 0:09:24.3]} 18... O-O {[%clk 0:03:41.2]} 19. Rfc1 {[%clk 0:08:33.5]}
19... Qa4 {[%clk 0:03:31.9]} 20. Bd1 {[%clk 0:08:16.5]} 20... Qa5 {[%clk
0:03:17.3]} 21. Rcb1 {[%clk 0:08:07]} 21... Qd8 {[%clk 0:03:13.6]} 22. Nf3
{[%clk 0:08:00.4]} 22... b5 {[%clk 0:02:51.8]} 23. Bc2 {[%clk 0:07:44.3]} 23...
f5 {[%clk 0:01:53.3]} 24. exf6 {[%clk 0:05:59.9]} 24... Rxf6 {[%clk 0:01:45.4]}
25. g5 {[%clk 0:05:57.2]} 25... Nf5 {[%clk 0:01:46.1]} 26. Qf2 {[%clk
0:05:39.2]} 26... Rf7 {[%clk 0:01:17.9]} 27. h4 {[%clk 0:05:22.9]} 27... Nce7
{[%clk 0:01:01.2]} 28. Ne5 {[%clk 0:04:58.1]} 28... Rf8 {[%clk 0:00:55.9]} 29.
Kg2 {[%clk 0:04:24.2]} 29... Ng6 {[%clk 0:00:54.2]} 30. Nxg6 {[%clk 0:04:18.4]}
30... hxg6 {[%clk 0:00:51.8]} 31. Rh1 {[%clk 0:04:16]} 31... Kf7 {[%clk
0:00:26.6]} 32. h5 {[%clk 0:04:03.2]} 1-0

[Event "Rapid del Mercoledì"]
[Site "Chess.com"]
[Date "2020.04.29"]
[Round "5"]
[White "Delsoldato03"]
[Black "Carbon"]
[Result "0-1"]
[WhiteElo "1226"]
[BlackElo "1743"]
[TimeControl "720+3"]
[EndTime "13:22:55 PDT"]
[Termination "Carbon ha vinto per abbandono"]

1. e4 {[%clk 0:12:02.9]} 1... c5 {[%clk 0:11:57.8]} 2. Nf3 {[%clk 0:12:04.2]}
2... Nc6 {[%clk 0:11:58.7]} 3. d4 {[%clk 0:12:03.5]} 3... cxd4 {[%clk
0:11:59.8]} 4. Nxd4 {[%clk 0:12:05.2]} 4... g6 {[%clk 0:12:01.8]} 5. Be3 {[%clk
0:12:05.6]} 5... Bg7 {[%clk 0:12:02.8]} 6. Nc3 {[%clk 0:11:47.7]} 6... Nf6
{[%clk 0:12:03.4]} 7. Bc4 {[%clk 0:11:32.8]} 7... O-O {[%clk 0:12:04]} 8. O-O
{[%clk 0:11:33.3]} 8... d6 {[%clk 0:11:33.2]} 9. Qd2 {[%clk 0:11:20.5]} 9... Ng4
{[%clk 0:11:31]} 10. Nxc6 {[%clk 0:11:16.4]} 10... bxc6 {[%clk 0:11:27.6]} 11.
Bh6 {[%clk 0:11:17.9]} 11... Bxh6 {[%clk 0:11:15.5]} 0-1

[Event "Rapid del Mercoledì"]
[Site "Chess.com"]
[Date "2020.04.29"]
[Round "5"]
[White "laremaro"]
[Black "crippo"]
[Result "1-0"]
[WhiteElo "1739"]
[BlackElo "1494"]
[TimeControl "720+3"]
[EndTime "13:27:16 PDT"]
[Termination "laremaro ha vinto per scaccomatto"]

1. e4 {[%clk 0:11:11.2]} 1... e5 {[%clk 0:11:46.2]} 2. Nf3 {[%clk 0:11:11.3]}
2... Nc6 {[%clk 0:11:47.2]} 3. Bb5 {[%clk 0:11:12.7]} 3... d6 {[%clk 0:11:48.4]}
4. O-O {[%clk 0:11:10.1]} 4... Bg4 {[%clk 0:11:49.5]} 5. d3 {[%clk 0:11:06.4]}
5... Be7 {[%clk 0:11:50.1]} 6. Nbd2 {[%clk 0:11:04.2]} 6... Nf6 {[%clk
0:11:51.3]} 7. Re1 {[%clk 0:11:05.5]} 7... O-O {[%clk 0:11:52.5]} 8. c3 {[%clk
0:11:06.9]} 8... h6 {[%clk 0:11:54.5]} 9. Nf1 {[%clk 0:11:08.5]} 9... Nh7 {[%clk
0:11:55.8]} 10. Ng3 {[%clk 0:11:06.4]} 10... Bg5 {[%clk 0:11:52.7]} 11. h3
{[%clk 0:10:57.1]} 11... Bxf3 {[%clk 0:11:44.3]} 12. Qxf3 {[%clk 0:10:57.5]}
12... Bxc1 {[%clk 0:11:45.7]} 13. Raxc1 {[%clk 0:10:58.2]} 13... Ng5 {[%clk
0:11:46.2]} 14. Qg4 {[%clk 0:10:46.7]} 14... Ne7 {[%clk 0:11:45.4]} 15. h4
{[%clk 0:10:02.6]} 15... Nh7 {[%clk 0:11:39.7]} 16. d4 {[%clk 0:09:00.9]} 16...
Nf6 {[%clk 0:11:37.8]} 17. Qf3 {[%clk 0:08:51.6]} 17... exd4 {[%clk 0:11:35.1]}
18. cxd4 {[%clk 0:08:53]} 18... Ng6 {[%clk 0:11:36.5]} 19. Nf5 {[%clk
0:08:42.1]} 19... c6 {[%clk 0:11:23.8]} 20. Bd3 {[%clk 0:08:32.1]} 20... Re8
{[%clk 0:11:18.6]} 21. h5 {[%clk 0:08:29.3]} 21... Ne7 {[%clk 0:11:13.9]} 22.
Nxh6+ {[%clk 0:08:25.7]} 22... Kf8 {[%clk 0:10:46.2]} 23. e5 {[%clk 0:08:21.2]}
23... dxe5 {[%clk 0:10:46.3]} 24. dxe5 {[%clk 0:08:22.5]} 24... Nfg8 {[%clk
0:10:39.5]} 25. Qxf7# {[%clk 0:08:23.1]} 1-0

[Event "Rapid del Mercoledì"]
[Site "Chess.com"]
[Date "2020.04.29"]
[Round "5"]
[White "OMatteoWuO"]
[Black "sirmale49"]
[Result "0-1"]
[WhiteElo "1139"]
[BlackElo "1390"]
[TimeControl "720+3"]
[EndTime "13:34:34 PDT"]
[Termination "sirmale49 ha vinto per abbandono"]

1. d4 {[%clk 0:12:02.9]} 1... d5 {[%clk 0:12:00.3]} 2. c4 {[%clk 0:12:04.3]}
2... e5 {[%clk 0:11:57.9]} 3. dxe5 {[%clk 0:12:04.3]} 3... d4 {[%clk 0:11:58.5]}
4. Nf3 {[%clk 0:11:30]} 4... Nc6 {[%clk 0:11:55.9]} 5. Nbd2 {[%clk 0:10:25.7]}
5... Nge7 {[%clk 0:11:48]} 6. Nb3 {[%clk 0:10:12.8]} 6... Nf5 {[%clk 0:11:42.7]}
7. g3 {[%clk 0:09:49.8]} 7... Be6 {[%clk 0:11:39.2]} 8. Bg2 {[%clk 0:09:38.3]}
8... Bxc4 {[%clk 0:11:38.1]} 9. Qc2 {[%clk 0:09:13.6]} 9... Bb4+ {[%clk
0:11:11.9]} 10. Bd2 {[%clk 0:08:23.6]} 10... Bxd2+ {[%clk 0:11:11.5]} 11. Nbxd2
{[%clk 0:08:09.4]} 11... Bd5 {[%clk 0:11:06.5]} 12. Qxf5 {[%clk 0:08:03.6]}
12... Nb4 {[%clk 0:10:52.5]} 13. a3 {[%clk 0:07:31.3]} 13... Be6 {[%clk
0:10:46.8]} 14. Qe4 {[%clk 0:06:46.4]} 14... Bd5 {[%clk 0:10:44.4]} 15. Qxd4
{[%clk 0:06:34.3]} 15... Nc2+ {[%clk 0:10:43.6]} 16. Kf1 {[%clk 0:06:28]} 16...
Nxd4 {[%clk 0:10:43.1]} 17. Nxd4 {[%clk 0:06:30]} 17... Bxg2+ {[%clk 0:10:42.6]}
18. Kxg2 {[%clk 0:06:31]} 18... Qxd4 {[%clk 0:10:43.6]} 19. Nf3 {[%clk
0:06:30.7]} 19... Qxb2 {[%clk 0:10:40]} 20. Rab1 {[%clk 0:06:25.9]} 20... Qxa3
{[%clk 0:10:38]} 21. Rxb7 {[%clk 0:06:27.4]} 21... O-O {[%clk 0:10:38.6]} 22.
Rxc7 {[%clk 0:06:28.4]} 22... Rac8 {[%clk 0:10:31.1]} 23. Rb7 {[%clk 0:06:17.8]}
23... Rfd8 {[%clk 0:10:28.7]} 24. Rhb1 {[%clk 0:06:12.7]} 24... Qc5 {[%clk
0:10:19.7]} 25. R7b5 {[%clk 0:05:48.5]} 25... Qc2 {[%clk 0:10:12.2]} 26. R5b2
{[%clk 0:05:33.3]} 26... Qf5 {[%clk 0:10:11.5]} 27. Ra1 {[%clk 0:05:15.5]} 27...
Ra8 {[%clk 0:10:03.1]} 28. Rb7 {[%clk 0:04:53.6]} 28... a5 {[%clk 0:09:54.6]}
29. Rc1 {[%clk 0:04:05.9]} 29... a4 {[%clk 0:09:53.5]} 30. Rcc7 {[%clk
0:03:53.6]} 30... a3 {[%clk 0:09:53.8]} 31. e6 {[%clk 0:03:44.1]} 31... Qxe6
{[%clk 0:09:53]} 32. Ng5 {[%clk 0:03:42.3]} 32... Qd5+ {[%clk 0:09:45.3]} 33.
Nf3 {[%clk 0:03:39.5]} 33... a2 {[%clk 0:09:41.5]} 0-1

[Event "Rapid del Mercoledì"]
[Site "Chess.com"]
[Date "2020.04.29"]
[Round "5"]
[White "SanSecondoPR"]
[Black "ottovolante"]
[Result "1/2-1/2"]
[WhiteElo "1259"]
[BlackElo "1017"]
[TimeControl "720+3"]
[EndTime "13:34:51 PDT"]
[Termination "Patta per materiale insufficiente"]

1. e4 {[%clk 0:12:02.9]} 1... d6 {[%clk 0:11:59.8]} 2. d4 {[%clk 0:12:03.9]}
2... e5 {[%clk 0:11:59.6]} 3. dxe5 {[%clk 0:12:03.2]} 3... dxe5 {[%clk
0:12:01.1]} 4. Qxd8+ {[%clk 0:12:02.9]} 4... Kxd8 {[%clk 0:12:01.7]} 5. f4
{[%clk 0:12:04.1]} 5... Bb4+ {[%clk 0:11:53.6]} 6. c3 {[%clk 0:12:03.7]} 6...
Bd6 {[%clk 0:11:54.2]} 7. fxe5 {[%clk 0:11:54.9]} 7... Bxe5 {[%clk 0:11:53]} 8.
Nf3 {[%clk 0:11:56.3]} 8... Nc6 {[%clk 0:11:48.8]} 9. Bc4 {[%clk 0:11:54.3]}
9... Ke8 {[%clk 0:11:43.6]} 10. O-O {[%clk 0:11:53.1]} 10... Bg4 {[%clk
0:11:43.8]} 11. Nxe5 {[%clk 0:11:48]} 11... Nxe5 {[%clk 0:11:44.4]} 12. Bf4
{[%clk 0:11:43.3]} 12... Nxc4 {[%clk 0:11:44]} 13. Bxc7 {[%clk 0:11:39.4]} 13...
Be6 {[%clk 0:11:37.9]} 14. b3 {[%clk 0:11:32.7]} 14... Nb6 {[%clk 0:11:35.1]}
15. c4 {[%clk 0:11:30.3]} 15... Rc8 {[%clk 0:11:36.5]} 16. Be5 {[%clk
0:11:26.8]} 16... f6 {[%clk 0:11:32.4]} 17. Bb2 {[%clk 0:11:23.9]} 17... Nd7
{[%clk 0:11:07.2]} 18. Nc3 {[%clk 0:11:20.2]} 18... a6 {[%clk 0:11:05.3]} 19.
Rae1 {[%clk 0:11:08.7]} 19... Nc5 {[%clk 0:11:06.2]} 20. e5 {[%clk 0:10:57.8]}
20... Nd3 {[%clk 0:11:06.4]} 21. Re2 {[%clk 0:10:54.8]} 21... Nxb2 {[%clk
0:11:06.6]} 22. Rxb2 {[%clk 0:10:55.6]} 22... f5 {[%clk 0:10:53.1]} 23. Ne2
{[%clk 0:10:49.3]} 23... Ne7 {[%clk 0:10:54.2]} 24. Nf4 {[%clk 0:10:47.3]} 24...
Kf7 {[%clk 0:10:46.3]} 25. g4 {[%clk 0:10:42.5]} 25... g6 {[%clk 0:10:38.5]} 26.
gxf5 {[%clk 0:10:35.8]} 26... gxf5 {[%clk 0:10:34.1]} 27. Rd2 {[%clk 0:10:23]}
27... Rhg8+ {[%clk 0:10:35]} 28. Kh1 {[%clk 0:10:22]} 28... b5 {[%clk
0:09:58.5]} 29. Rd6 {[%clk 0:10:20.4]} 29... Rc6 {[%clk 0:09:45.7]} 30. cxb5
{[%clk 0:10:14.2]} 30... Rxd6 {[%clk 0:09:47.1]} 31. exd6 {[%clk 0:10:13.8]}
31... Ng6 {[%clk 0:09:38.2]} 32. Nd3 {[%clk 0:10:02.5]} 32... axb5 {[%clk
0:09:34.2]} 33. Rc1 {[%clk 0:09:46]} 33... Rd8 {[%clk 0:09:32.4]} 34. Rc7+
{[%clk 0:09:41.5]} 34... Rd7 {[%clk 0:09:32.4]} 35. Nc5 {[%clk 0:09:33.8]} 35...
Rxc7 {[%clk 0:09:25.1]} 36. dxc7 {[%clk 0:09:33.7]} 36... Bc8 {[%clk 0:09:25.7]}
37. a4 {[%clk 0:09:30]} 37... bxa4 {[%clk 0:09:22.1]} 38. bxa4 {[%clk
0:09:30.5]} 38... Ke7 {[%clk 0:09:21.3]} 39. a5 {[%clk 0:09:13.8]} 39... Kd6
{[%clk 0:09:22.5]} 40. Na6 {[%clk 0:09:02.9]} 40... Kc6 {[%clk 0:09:19.9]} 41.
Nb4+ {[%clk 0:08:57.9]} 41... Kb5 {[%clk 0:09:20.1]} 42. Nd5 {[%clk 0:08:56.5]}
42... Kxa5 {[%clk 0:09:19.2]} 43. h4 {[%clk 0:08:53.4]} 43... Nxh4 {[%clk
0:09:19.1]} 44. Ne7 {[%clk 0:08:53.3]} 44... Bd7 {[%clk 0:09:14]} 45. c8=Q
{[%clk 0:08:51.6]} 45... Bxc8 {[%clk 0:09:14.7]} 46. Nxc8 {[%clk 0:08:51.9]}
46... h5 {[%clk 0:09:13.5]} 47. Nd6 {[%clk 0:08:53.1]} 47... f4 {[%clk
0:09:13.1]} 48. Kh2 {[%clk 0:08:53.7]} 48... Nf3+ {[%clk 0:09:14.2]} 49. Kg2
{[%clk 0:08:47.7]} 49... Nh4+ {[%clk 0:09:10.5]} 50. Kf2 {[%clk 0:08:45.7]}
50... Kb6 {[%clk 0:09:08.5]} 51. Ne4 {[%clk 0:08:44.2]} 51... Kc6 {[%clk
0:09:06.2]} 52. Ng5 {[%clk 0:08:44.5]} 52... Kd5 {[%clk 0:09:06.4]} 53. Nh3
{[%clk 0:08:42.2]} 53... Ke5 {[%clk 0:09:05.8]} 54. Kg1 {[%clk 0:08:26.3]} 54...
Kf5 {[%clk 0:09:07.1]} 55. Nf2 {[%clk 0:08:18]} 55... Nf3+ {[%clk 0:09:06]} 56.
Kg2 {[%clk 0:08:16.1]} 56... Ne5 {[%clk 0:09:02.4]} 57. Kf1 {[%clk 0:08:07.5]}
57... h4 {[%clk 0:09:03.6]} 58. Kg2 {[%clk 0:08:04.2]} 58... Ng4 {[%clk
0:09:04.9]} 59. Nh3 {[%clk 0:08:01]} 59... Ne3+ {[%clk 0:08:55.7]} 60. Kf3
{[%clk 0:07:58.7]} 60... Nd5 {[%clk 0:08:45.4]} 61. Ng1 {[%clk 0:07:52.9]} 61...
Kg5 {[%clk 0:08:43]} 62. Nh3+ {[%clk 0:07:52.7]} 62... Kh5 {[%clk 0:08:42.9]}
63. Nxf4+ {[%clk 0:07:13.1]} 63... Nxf4 {[%clk 0:08:42.5]} 64. Kxf4 {[%clk
0:07:13.1]} 64... h3 {[%clk 0:08:43]} 65. Kg3 {[%clk 0:07:13.7]} 65... h2 {[%clk
0:08:42.9]} 66. Kxh2 {[%clk 0:07:14.7]} 1/2-1/2

[Event "Rapid del Mercoledì"]
[Site "Chess.com"]
[Date "2020.04.29"]
[Round "5"]
[White "Mrtre7"]
[Black "pedrak"]
[Result "1-0"]
[WhiteElo "1415"]
[BlackElo "1617"]
[TimeControl "720+3"]
[EndTime "13:37:29 PDT"]
[Termination "Mrtre7 ha vinto per scaccomatto"]

1. d4 {[%clk 0:12:02.9]} 1... Nf6 {[%clk 0:11:57.2]} 2. c4 {[%clk 0:12:04.5]}
2... d6 {[%clk 0:11:58.7]} 3. Nc3 {[%clk 0:11:56.1]} 3... g6 {[%clk 0:11:58.4]}
4. e4 {[%clk 0:11:53.4]} 4... Bg7 {[%clk 0:11:59.3]} 5. Nf3 {[%clk 0:11:55.1]}
5... O-O {[%clk 0:12:00.7]} 6. Be2 {[%clk 0:11:56.9]} 6... Nbd7 {[%clk
0:12:01.6]} 7. O-O {[%clk 0:11:55.9]} 7... e5 {[%clk 0:12:02.7]} 8. Be3 {[%clk
0:11:55]} 8... h6 {[%clk 0:12:03.1]} 9. d5 {[%clk 0:11:30.6]} 9... a5 {[%clk
0:12:01.9]} 10. Rb1 {[%clk 0:10:59]} 10... b6 {[%clk 0:11:59.7]} 11. b4 {[%clk
0:10:53.8]} 11... axb4 {[%clk 0:11:57.1]} 12. Rxb4 {[%clk 0:10:53.2]} 12... Nc5
{[%clk 0:11:57.4]} 13. Bxc5 {[%clk 0:10:29.5]} 13... bxc5 {[%clk 0:11:58.2]} 14.
Rb2 {[%clk 0:10:08]} 14... Nh5 {[%clk 0:11:57.7]} 15. Qb1 {[%clk 0:09:22.8]}
15... Nf4 {[%clk 0:11:56.3]} 16. Bd1 {[%clk 0:09:10.8]} 16... f5 {[%clk
0:11:51.2]} 17. Ba4 {[%clk 0:08:42.4]} 17... Nh5 {[%clk 0:11:40.7]} 18. Bc6
{[%clk 0:08:33.5]} 18... Ra7 {[%clk 0:11:33.2]} 19. Bb7 {[%clk 0:08:20.7]} 19...
Bxb7 {[%clk 0:11:32.5]} 20. Rxb7 {[%clk 0:08:21.5]} 20... Rxb7 {[%clk
0:11:33.4]} 21. Qxb7 {[%clk 0:08:23]} 21... fxe4 {[%clk 0:11:27.3]} 22. Nxe4
{[%clk 0:08:16.3]} 22... Rf4 {[%clk 0:11:28.5]} 23. Nfd2 {[%clk 0:07:54.4]}
23... Bf6 {[%clk 0:11:19.3]} 24. Rb1 {[%clk 0:07:43.5]} 24... Qd7 {[%clk
0:10:57.6]} 25. a4 {[%clk 0:05:39.1]} 25... Be7 {[%clk 0:10:05.5]} 26. a5 {[%clk
0:05:23.7]} 26... Rf8 {[%clk 0:09:58.9]} 27. a6 {[%clk 0:04:42.2]} 27... Qa4
{[%clk 0:09:41.2]} 28. a7 {[%clk 0:04:04.1]} 28... Nf6 {[%clk 0:09:31.3]} 29.
Qxc7 {[%clk 0:03:13]} 29... Nxe4 {[%clk 0:09:28.5]} 30. Nxe4 {[%clk 0:02:55.9]}
30... Qc2 {[%clk 0:09:25.2]} 31. Re1 {[%clk 0:02:41.2]} 31... Qxc4 {[%clk
0:09:03.4]} 32. Qxe7 {[%clk 0:02:39.3]} 32... Qxd5 {[%clk 0:09:02.6]} 33. Nf6+
{[%clk 0:02:23.1]} 33... Rxf6 {[%clk 0:09:01.7]} 34. Qxf6 {[%clk 0:02:24.9]}
34... Kh7 {[%clk 0:08:46.7]} 35. Qf8 {[%clk 0:02:10.2]} 35... Qd2 {[%clk
0:08:44.1]} 36. Qf7+ {[%clk 0:02:04.6]} 36... Kh8 {[%clk 0:08:25.5]} 37. a8=Q#
{[%clk 0:01:53.4]} 1-0